bitfinex/quotes_BTCUSD_20250730
["timestamp","ask_amount","ask_price","bid_price","bid_amount"]
[1753881706071,0.20218531,117760.0,117750.0,0.07237589]
[1753881706303,0.04083984,117760.0,117750.0,0.07237589]
[1753881706508,0.04083941,117760.0,117750.0,0.07237589]
[1753881706712,0.05782273,117760.0,117750.0,0.07237589]
[1753881706980,0.04833096,117760.0,117750.0,0.07237589]
[1753881707164,0.02285666,117760.0,117750.0,0.10347589]
[1753881707396,0.031348,117760.0,117750.0,0.13407589]
[1753881707618,0.03983948,117760.0,117750.0,0.13407589]
[1753881707844,0.04733118,117760.0,117750.0,0.13407589]
[1753881708499,0.04733111,117760.0,117750.0,0.13407589]
[1753881708884,0.03883948,117760.0,117750.0,0.13407589]
[1753881709129,0.04733132,117760.0,117750.0,0.26663589]
[1753881709301,0.04733132,117760.0,117750.0,0.23603589]
[1753881710097,0.04678623,117760.0,117750.0,0.23603589]
[1753881710283,0.05527793,117760.0,117750.0,0.23603589]
[1753881710487,0.06376977,117760.0,117750.0,0.23603589]
[1753881710699,0.57360672,117760.0,117750.0,0.23603589]
[1753881710906,0.5736039,117760.0,117750.0,0.23603589]
[1753881711538,0.5736039,117760.0,117750.0,0.20493589]
[1753881711976,0.5756639,117760.0,117750.0,0.00048589]
[1753881712178,0.60429315,117760.0,117750.0,0.00048589]
[1753881712388,0.55868101,117760.0,117750.0,0.00048589]
[1753881712618,0.55868101,117760.0,117750.0,0.06914589]
[1753881712821,0.38678327,117760.0,117750.0,0.07237589]
[1753881713030,0.36980052,117760.0,117750.0,0.57252975]
[1753881713240,0.3867832,117760.0,117750.0,0.57252975]
[1753881713451,0.37829179,117760.0,117750.0,0.57252975]
[1753881713663,0.37829179,117760.0,117750.0,0.21765319]
[1753881713874,0.38678622,117760.0,117750.0,0.21765319]
[1753881714106,0.3952777,117760.0,117750.0,0.21765319]
[1753881714786,0.38678622,117760.0,117750.0,0.21765319]
[1753881714984,0.37829488,117760.0,117750.0,0.21765319]
[1753881715873,0.36980361,117760.0,117750.0,0.21765319]
[1753881716142,0.36980361,117760.0,117750.0,0.57252975]
[1753881716380,0.02980403,117760.0,117750.0,0.74238113]
[1753881716610,0.02980403,117760.0,117750.0,0.75936618]
[1753881716858,0.02980403,117760.0,117750.0,0.21765319]
[1753881717116,0.02980403,117760.0,117750.0,0.57252975]
[1753881717358,0.02384212,117760.0,117750.0,0.21765319]
[1753881717587,0.01589346,117760.0,117750.0,0.57252975]
[1753881717818,0.03233549,117760.0,117750.0,0.21765319]
[1753881718056,0.03233549,117760.0,117750.0,0.18755319]
[1753881718299,0.04931853,117760.0,117750.0,0.32207319]
[1753881718768,0.04931853,117760.0,117750.0,0.29137319]
[1753881718769,0.22764718,117760.0,117750.0,0.29137319]
[1753881719229,0.22115584,117760.0,117750.0,0.07114589]
[1753881719464,0.21266443,117760.0,117750.0,0.13500589]
[1753881719678,0.04082985,117760.0,117750.0,0.20421589]
[1753881719897,0.04932162,117760.0,117750.0,0.20521589]
[1753881720143,0.04082985,117760.0,117750.0,0.20521589]
[1753881720363,0.02384681,117760.0,117750.0,0.20521589]
[1753881720577,0.02384681,117760.0,117750.0,0.70826975]
[1753881720834,0.01589346,117760.0,117750.0,0.89510604]
[1753881721036,0.01589346,117760.0,117750.0,0.84839002]
[1753881721242,0.37758403,117770.0,117750.0,0.84839009]
[1753881721464,0.37758403,117770.0,117760.0,0.50055386]
[1753881721465,0.04553522,117770.0,117760.0,0.50055386]
[1753881721689,0.04553524,117770.0,117760.0,0.56976386]
[1753881721908,0.04553524,117770.0,117760.0,0.75658421]
[1753881722179,0.04553524,117770.0,117760.0,0.74809265]
[1753881722395,0.04553524,117770.0,117760.0,0.76507583]
[1753881722612,0.03758214,117770.0,117760.0,0.76507583]
[1753881722831,0.03758214,117770.0,117760.0,0.77356724]
[1753881723057,0.03757845,117770.0,117760.0,0.74809265]
[1753881723492,0.03757845,117770.0,117760.0,0.75658442]
[1753881723968,0.03757845,117770.0,117760.0,0.56976386]
[1753881725489,0.02167593,117770.0,117760.0,0.56976386]
[1753881725723,0.34,117780.0,117770.0,0.0615]
[1753881725973,0.3638402,117780.0,117770.0,0.70258386]
[1753881726207,0.3638402,117780.0,117770.0,0.88089744]
[1753881726208,0.0238402,117780.0,117770.0,0.88089744]
[1753881726445,0.01589347,117780.0,117770.0,0.71107498]
[1753881726673,0.34,117790.0,117780.0,0.0604]
[1753881726908,0.34,117790.0,117780.0,0.1469573]
[1753881727145,0.34,117790.0,117780.0,0.56796386]
[1753881727372,0.38693131,117790.0,117780.0,0.1504773]
[1753881727594,0.38693123,117790.0,117780.0,0.1504773]
[1753881727850,0.36795245,117790.0,117780.0,0.1536873]
[1753881728109,0.36941108,117790.0,117780.0,0.1536873]
[1753881728354,0.36742415,117790.0,117780.0,0.54076386]
[1753881728606,0.3844025,117790.0,117780.0,0.1858873]
[1753881728834,0.37591325,117790.0,117780.0,0.1848873]
[1753881729065,0.36742415,117790.0,117780.0,0.1848873]
[1753881729303,0.38384816,117790.0,117780.0,0.1848873]
[1753881729535,0.36795238,117790.0,117780.0,0.1848873]
[1753881729779,0.36895238,117790.0,117780.0,0.1848873]
[1753881730026,0.36895238,117790.0,117780.0,0.2151873]
[1753881730279,0.41673692,117790.0,117780.0,0.2151873]
[1753881730492,0.40824753,117790.0,117780.0,0.1829873]
[1753881730727,0.39126925,117790.0,117780.0,0.2157873]
[1753881730947,0.39126925,117790.0,117780.0,0.57066386]
[1753881731768,0.39126925,117790.0,117780.0,0.2157873]
[1753881732203,0.39975828,117790.0,117780.0,0.2157873]
[1753881732446,0.40824738,117790.0,117780.0,0.2157873]
[1753881732661,0.39126925,117790.0,117780.0,0.2157873]
[1753881733566,0.39326925,117790.0,117780.0,0.2157873]
[1753881734209,0.39326033,117790.0,117780.0,0.2157873]
[1753881734633,0.39126033,117790.0,117780.0,0.2157873]
[1753881735694,0.40823861,117790.0,117780.0,0.2157873]
[1753881735905,0.40823861,117790.0,117780.0,0.0834773]
[1753881735906,0.41023861,117790.0,117780.0,0.0834773]
[1753881736119,0.41872793,117790.0,117780.0,0.0834773]
[1753881736959,0.41023861,117790.0,117780.0,0.0834773]
[1753881737382,0.418728,117790.0,117780.0,0.0834773]
[1753881737591,0.41023861,117790.0,117780.0,0.0834773]
[1753881737803,0.418728,117790.0,117780.0,0.0834773]
[1753881738032,0.42721754,117790.0,117780.0,0.0834773]
[1753881738254,0.00848982,117780.0,117760.0,0.2950564]
[1753881738462,0.00848982,117780.0,117770.0,0.2189973]
[1753881738463,0.0402868,117780.0,117770.0,0.2189973]
[1753881738702,0.05726688,117780.0,117770.0,0.2829173]
[1753881738913,0.04877677,117780.0,117770.0,0.2829173]
[1753881739573,0.06575707,117780.0,117770.0,0.2829173]
[1753881739809,0.05726681,117780.0,117770.0,0.2829173]
[1753881740054,0.03179698,117780.0,117770.0,0.2861273]
[1753881740272,0.03829229,117780.0,117770.0,0.70470386]
[1753881740504,0.04678313,117780.0,117770.0,0.3498273]
[1753881740733,0.06376314,117780.0,117770.0,0.3498273]
[1753881740948,0.05527303,117780.0,117770.0,0.3186273]
[1753881741623,0.02980356,117780.0,117770.0,0.3186273]
[1753881742052,0.02980356,117780.0,117770.0,0.3488273]
[1753881743372,0.01589414,117780.0,117770.0,0.3488273]
[1753881743578,0.02980312,117780.0,117770.0,0.3488273]
[1753881743805,0.02980312,117780.0,117770.0,0.3498273]
[1753881744032,0.02980312,117780.0,117770.0,0.70470386]
[1753881744268,0.03829302,117780.0,117770.0,0.70470386]
[1753881744462,0.02980312,117780.0,117770.0,0.70470386]
[1753881744699,0.03829302,117780.0,117770.0,0.3498273]
[1753881744929,0.02980312,117780.0,117770.0,0.3498273]
[1753881745417,0.03829287,117780.0,117770.0,0.3498273]
[1753881745632,0.02980312,117780.0,117770.0,0.3498273]
[1753881746067,0.03829287,117780.0,117770.0,0.3498273]
[1753881746505,0.04678277,117780.0,117770.0,0.3498273]
[1753881746714,0.03829287,117780.0,117770.0,0.3498273]
[1753881746922,0.04678277,117780.0,117770.0,0.3498273]
[1753881747340,0.21472722,117790.0,117770.0,0.2173873]
[1753881747583,0.00848982,117780.0,117770.0,0.3498273]
[1753881747789,0.00848982,117780.0,117770.0,0.2859073]
[1753881748001,0.01697986,117780.0,117770.0,0.2859073]
[1753881748203,0.01697979,117780.0,117770.0,0.2859073]
[1753881748411,0.01697979,117780.0,117770.0,0.2230573]
[1753881748622,0.03591023,117780.0,117770.0,0.2927973]
[1753881748847,0.03591016,117780.0,117770.0,0.2927973]
[1753881749282,0.04440049,117780.0,117770.0,0.2927973]
[1753881749492,0.0274199,117780.0,117770.0,0.2927973]
[1753881749706,0.0274199,117780.0,117770.0,0.1603573]
[1753881749913,0.03591016,117780.0,117770.0,0.2895873]
[1753881750575,0.0274199,117780.0,117770.0,0.2895873]
[1753881750800,0.03591008,117780.0,117770.0,0.2895873]
[1753881751400,0.04440034,117780.0,117770.0,0.2895873]
[1753881751614,0.01892979,117780.0,117770.0,0.2199973]
[1753881751819,0.37744235,117790.0,117770.0,0.0906573]
[1753881752039,0.55572573,117790.0,117780.0,0.13244]
[1753881752248,0.55767573,117790.0,117780.0,0.13244]
[1753881752464,0.55667573,117790.0,117780.0,0.13244]
[1753881752832,0.17829844,117780.0,117770.0,0.0854773]
[1753881753044,0.538185,117780.0,117770.0,0.13344]
[1753881753251,0.570285,117780.0,117770.0,0.13344]
[1753881753701,0.21540844,117780.0,117770.0,0.13244]
[1753881753946,0.01698289,117760.0,117750.0,0.00048589]
[1753881754186,0.19726211,117760.0,117750.0,0.21740319]
[1753881754706,0.01893289,117760.0,117750.0,0.21941319]
[1753881754959,0.01893289,117760.0,117750.0,0.22251319]
[1753881755226,0.02742452,117760.0,117750.0,0.22251319]
[1753881755439,0.00849127,117760.0,117750.0,0.22251319]
[1753881755689,0.01698275,117760.0,117750.0,0.22251319]
[1753881755926,0.02547445,117760.0,117750.0,0.22251319]
[1753881756165,0.02547438,117760.0,117750.0,0.22251319]
[1753881756646,0.01698275,117760.0,117750.0,0.22551319]
[1753881756881,0.01698275,117760.0,117750.0,0.29510319]
[1753881757100,0.01698275,117760.0,117750.0,0.29910319]
[1753881758047,0.52877013,117760.0,117750.0,0.00748589]
[1753881758272,0.56183013,117760.0,117750.0,0.13992589]
[1753881758717,1.21698669,117760.0,117750.0,0.00748589]
[1753881758941,1.21698669,117760.0,117750.0,0.13592589]
[1753881759183,1.21698669,117760.0,117750.0,0.13292589]
[1753881759413,1.24679765,117760.0,117750.0,0.13292589]
[1753881759654,0.89192109,117760.0,117750.0,0.13492589]
[1753881760730,0.89192109,117760.0,117750.0,0.13792589]
[1753881760937,0.87601871,117760.0,117750.0,0.13792589]
[1753881761140,0.8919115,117760.0,117750.0,0.13792589]
[1753881762382,0.82264931,117760.0,117750.0,0.13792589]
[1753881762632,0.74717783,117760.0,117750.0,0.13792589]
[1753881762868,0.84645783,117760.0,117750.0,0.13792589]
[1753881764297,0.84645902,117760.0,117750.0,0.13792589]
[1753881764747,0.76110234,117760.0,117750.0,0.20751589]
[1753881764969,0.39975652,117760.0,117750.0,0.20751589]
[1753881765444,0.39975645,117760.0,117750.0,0.20952589]
[1753881765653,0.55261086,117760.0,117750.0,0.20751589]
[1753881765889,0.54411916,117760.0,117750.0,0.13792589]
[1753881766089,0.54411916,117760.0,117750.0,0.13292589]
[1753881766542,0.59567639,117760.0,117750.0,0.13492589]
[1753881766772,0.65669732,117760.0,117750.0,0.13492589]
[1753881766995,0.32017909,117760.0,117750.0,0.13492589]
[1753881767239,0.01589398,117760.0,117750.0,0.85003113]
[1753881767492,0.01698109,117770.0,117750.0,0.71147975]
[1753881767493,0.05834765,117770.0,117750.0,0.71147975]
[1753881767745,0.00849127,117760.0,117750.0,0.28391319]
[1753881767975,0.21229444,117760.0,117750.0,0.09507319]
[1753881768198,0.03396565,117760.0,117750.0,0.14303589]
[1753881768417,0.20380303,117760.0,117750.0,0.21262589]
[1753881768641,0.03396615,117760.0,117750.0,0.21262589]
[1753881768868,0.02547438,117760.0,117750.0,0.21262589]
[1753881769288,0.03396615,117760.0,117750.0,0.21062589]
[1753881769531,0.02547438,117760.0,117750.0,0.21062589]
[1753881769786,0.25747028,117760.0,117750.0,0.13588589]
[1753881769975,0.69381696,117760.0,117750.0,0.00448589]
[1753881770178,0.8372692,117760.0,117750.0,0.13688589]
[1753881770604,0.73660878,117760.0,117750.0,0.13688589]
[1753881770817,1.07761878,117760.0,117750.0,0.13588589]
[1753881771254,0.38274222,117760.0,117750.0,0.13388589]
[1753881771475,0.33171222,117760.0,117750.0,0.13388589]
[1753881771682,0.33171222,117760.0,117750.0,0.13588589]
[1753881771920,0.67171222,117760.0,117750.0,0.13588589]
[1753881772853,6.11169608,117760.0,117750.0,0.00348589]
[1753881773136,6.42999059,117760.0,117750.0,0.00348589]
[1753881773348,6.34551329,117760.0,117750.0,0.00348589]
[1753881773564,1.31765403,117760.0,117750.0,0.00348589]
[1753881773799,6.31765403,117760.0,117750.0,0.00248589]
[1753881774505,6.31765403,117760.0,117750.0,0.00048589]
[1753881774725,6.31169608,117760.0,117750.0,0.00048589]
[1753881774949,6.31169608,117760.0,117750.0,0.00148589]
[1753881775194,6.31169608,117760.0,117750.0,0.00048589]
[1753881775419,5.95618952,117760.0,117750.0,0.00048589]
[1753881775639,0.71832865,117760.0,117750.0,0.07518589]
[1753881775867,0.51832865,117760.0,117750.0,0.07518589]
[1753881776077,0.34849141,117760.0,117750.0,0.20758589]
[1753881776303,0.34,117760.0,117750.0,0.27098589]
[1753881776524,0.34,117760.0,117750.0,0.35546319]
[1753881776970,0.34,117760.0,117750.0,0.52531457]
[1753881777194,0.00849055,117770.0,117760.0,0.0647]
[1753881777464,0.03437811,117780.0,117770.0,0.0632]
[1753881777671,0.390813,117780.0,117770.0,0.1956]
[1753881777905,0.39081293,117780.0,117770.0,0.26935]
[1753881778135,0.03437803,117780.0,117770.0,0.26935]
[1753881778410,0.02588821,117780.0,117770.0,0.26935]
[1753881778658,0.38286807,117780.0,117770.0,0.26935]
[1753881778885,0.3739603,117780.0,117770.0,0.26935]
[1753881779126,0.54376841,117780.0,117770.0,0.26935]
[1753881779605,0.54376841,117780.0,117770.0,0.27035]
[1753881780531,0.53527859,117780.0,117770.0,0.27035]
[1753881780999,0.53527859,117780.0,117770.0,0.23885]
[1753881781237,0.36547048,117780.0,117770.0,0.27115]
[1753881781467,0.56108356,117780.0,117770.0,0.27115]
[1753881781709,0.55259352,117780.0,117770.0,0.20715]
[1753881782689,0.54410341,117780.0,117770.0,0.20715]
[1753881786367,0.56097474,117780.0,117770.0,0.20715]
[1753881786576,0.63544512,117780.0,117770.0,0.1334]
[1753881787486,0.29544512,117780.0,117770.0,0.1334]
[1753881787734,0.6827206,117780.0,117770.0,0.001]
[1753881787978,0.85392814,117780.0,117770.0,0.001]
[1753881789064,0.93903544,117780.0,117770.0,0.001]
[1753881789280,0.93903466,117780.0,117770.0,0.001]
[1753881789479,6.27903466,117780.0,117770.0,0.001]
[1753881790528,0.71831351,117770.0,117760.0,0.13236]
[1753881790755,0.71831351,117770.0,117760.0,0.20611]
[1753881792802,0.71831351,117770.0,117760.0,0.20711]
[1753881794664,0.72680442,117770.0,117760.0,0.20711]
[1753881796243,0.71831351,117770.0,117760.0,0.20711]
[1753881796465,0.78586351,117770.0,117760.0,0.13336]
[1753881796705,0.83432187,117770.0,117760.0,0.13336]
[1753881796941,0.71932351,117770.0,117760.0,0.20506]
[1753881797165,0.73518297,117770.0,117760.0,0.20506]
[1753881797634,0.73518297,117770.0,117760.0,0.13336]
[1753881797853,0.80172297,117770.0,117760.0,0.13336]
[1753881798515,0.80965374,117770.0,117760.0,0.13336]
[1753881798741,0.80172297,117770.0,117760.0,0.13336]
[1753881799004,0.83908158,117770.0,117760.0,0.001]
[1753881799227,0.80965336,117770.0,117760.0,0.13336]
[1753881799457,0.80965358,117770.0,117760.0,0.13336]
[1753881799685,0.84155358,117770.0,117760.0,0.13336]
[1753881800151,0.84750112,117770.0,117760.0,0.13336]
[1753881801273,0.93197842,117770.0,117760.0,0.13336]
[1753881801507,1.20237768,117770.0,117760.0,0.001]
[1753881801761,0.84750112,117770.0,117760.0,0.001]
[1753881801981,0.81560112,117770.0,117760.0,0.001]
[1753881802185,0.74906112,117770.0,117760.0,0.001]
[1753881802890,0.74805372,117770.0,117760.0,0.07475]
[1753881803125,0.74906372,117770.0,117760.0,0.07475]
[1753881804055,0.74805372,117770.0,117760.0,0.07475]
[1753881806436,0.74906372,117770.0,117760.0,0.001]
[1753881807356,0.74906372,117770.0,117760.0,0.07338]
[1753881808921,1.13694028,117770.0,117760.0,0.001]
[1753881809139,6.50197998,117770.0,117760.0,0.001]
[1753881810947,6.45250758,117770.0,117760.0,0.001]
[1753881811618,6.58801488,117770.0,117760.0,0.001]
[1753881811838,6.63748728,117770.0,117760.0,0.001]
[1753881812073,0.39062865,117760.0,117750.0,0.03048589]
[1753881812304,5.90857542,117760.0,117750.0,0.03048589]
[1753881812522,6.00210468,117760.0,117750.0,0.03048589]
[1753881812945,5.97424542,117760.0,117750.0,0.03048589]
[1753881814082,6.73423002,117760.0,117750.0,0.03048589]
[1753881814581,1.08172842,117740.0,117730.0,0.06725]
[1753881814789,1.09759048,117740.0,117730.0,0.06725]
[1753881815002,1.09759048,117740.0,117730.0,0.07258]
[1753881815642,0.74271392,117740.0,117730.0,0.07258]
[1753881815875,0.74271392,117740.0,117730.0,0.07358]
[1753881816102,0.74271392,117740.0,117730.0,0.07558]
[1753881816335,0.72685186,117740.0,117730.0,0.07558]
[1753881816544,0.54,117740.0,117730.0,0.13998]
[1753881816784,0.36547891,117740.0,117730.0,0.13998]
[1753881816998,0.53534507,117740.0,117730.0,0.13998]
[1753881818083,0.51835901,117740.0,117730.0,0.13998]
[1753881818297,0.51835901,117740.0,117730.0,0.10748]
[1753881818506,0.5098658,117740.0,117730.0,0.10748]
[1753881819580,0.5098658,117740.0,117730.0,0.14058]
[1753881820653,0.5098658,117740.0,117730.0,0.10748]
[1753881821093,0.52572714,117740.0,117730.0,0.07558]
[1753881821313,0.5098658,117740.0,117730.0,0.07558]
[1753881821536,0.5257265,117740.0,117730.0,0.07558]
[1753881821759,0.5257265,117740.0,117730.0,0.13748]
[1753881822682,0.5098658,117740.0,117730.0,0.13748]
[1753881822900,0.5098658,117740.0,117730.0,0.07558]
[1753881822901,0.87510007,117740.0,117730.0,0.07558]
[1753881823111,0.89095756,117740.0,117730.0,0.20581]
[1753881823576,0.89095756,117740.0,117730.0,0.0032]
[1753881823800,0.95599756,117740.0,117730.0,0.0032]
[1753881824230,0.89095756,117740.0,117730.0,0.0032]
[1753881824474,0.89095756,117740.0,117730.0,0.07349]
[1753881825131,0.89095756,117740.0,117730.0,0.07558]
[1753881825799,0.89095756,117740.0,117730.0,0.0032]
[1753881826023,0.89095756,117740.0,117730.0,0.07558]
[1753881827138,0.89095756,117740.0,117730.0,0.0032]
[1753881827370,0.95599756,117740.0,117730.0,0.0032]
[1753881827824,0.78446506,117740.0,117730.0,0.0032]
[1753881828270,0.75426506,117740.0,117730.0,0.0032]
[1753881828697,0.32500079,117740.0,117730.0,0.0032]
[1753881828915,0.68922506,117740.0,117730.0,0.0032]
[1753881829619,0.68821506,117740.0,117730.0,0.0032]
[1753881830048,0.32399079,117740.0,117730.0,0.0032]
[1753881830264,0.68821506,117740.0,117730.0,0.0032]
[1753881830488,0.33192017,117740.0,117730.0,0.0032]
[1753881830940,0.69614444,117740.0,117730.0,0.0032]
[1753881831406,0.33192017,117740.0,117730.0,0.0032]
[1753881832330,1.03614444,117740.0,117730.0,0.0032]
[1753881832583,0.8298769,117740.0,117730.0,0.0032]
[1753881832783,0.9997427,117740.0,117730.0,0.0032]
[1753881835267,0.83551843,117740.0,117730.0,0.0032]
[1753881835504,1.2314427,117740.0,117730.0,0.0032]
[1753881835754,6.78359991,117740.0,117730.0,0.0032]
[1753881836265,6.80913991,117740.0,117730.0,0.0032]
[1753881836503,6.86016991,117740.0,117730.0,0.0022]
[1753881837457,6.86016991,117740.0,117730.0,0.0002]
[1753881837681,6.74244666,117740.0,117730.0,0.0002]
[1753881837915,6.87476666,117740.0,117730.0,0.0012]
[1753881838637,6.87476666,117740.0,117730.0,0.0002]
[1753881838889,6.85845095,117740.0,117730.0,0.0012]
[1753881839140,6.86638679,117740.0,117730.0,0.0012]
[1753881839367,6.86638679,117740.0,117730.0,1e-08]
[1753881839595,6.93471039,117740.0,117730.0,1e-08]
[1753881840051,6.88464206,117740.0,117730.0,1e-08]
[1753881840726,5.56940409,117730.0,117720.0,0.0002]
[1753881840963,6.29525508,117730.0,117720.0,0.0002]
[1753881841708,6.33904664,117730.0,117720.0,0.0002]
[1753881841953,6.33904629,117730.0,117720.0,0.0002]
[1753881843152,5.98320574,117730.0,117720.0,0.0002]
[1753881843366,6.33904629,117730.0,117720.0,0.0002]
[1753881844317,6.3311108,117730.0,117720.0,0.0002]
[1753881844555,6.35292825,117730.0,117720.0,0.0002]
[1753881845838,6.35292758,117730.0,117720.0,0.0002]
[1753881846092,6.36086071,117730.0,117720.0,0.0002]
[1753881846833,1.36086071,117730.0,117720.0,0.0002]
[1753881847066,6.36086071,117730.0,117720.0,0.0002]
[1753881847529,6.19098048,117730.0,117720.0,0.0002]
[1753881847748,6.36086071,117730.0,117720.0,0.0002]
[1753881849425,6.00502016,117730.0,117720.0,0.0002]
[1753881849642,6.36086071,117730.0,117720.0,0.0002]
[1753881850304,6.00502016,117730.0,117720.0,0.0002]
[1753881850510,6.36086071,117730.0,117720.0,0.0002]
[1753881851670,6.32282758,117730.0,117720.0,0.0002]
[1753881851877,6.29212758,117730.0,117720.0,0.0002]
[1753881852753,6.30006202,117730.0,117720.0,0.0002]
[1753881852963,6.28419566,117730.0,117720.0,0.0002]
[1753881853200,1.33136497,117730.0,117720.0,0.0002]
[1753881853400,6.33136497,117730.0,117720.0,0.0002]
[1753881853620,5.66846247,117730.0,117720.0,0.0002]
[1753881853836,0.20019361,117730.0,117720.0,0.0622]
[1753881854053,0.1942434,117730.0,117720.0,0.0622]
[1753881854284,0.19948719,117730.0,117720.0,0.0622]
[1753881854728,0.19949019,117730.0,117720.0,0.0622]
[1753881855426,0.88765074,117730.0,117720.0,0.0622]
[1753881855648,0.89360224,117730.0,117720.0,0.0622]
[1753881855861,0.53776169,117730.0,117720.0,0.0622]
[1753881856076,0.33776169,117730.0,117720.0,0.0622]
[1753881856294,0.67776169,117730.0,117720.0,0.0622]
[1753881856745,0.67776129,117730.0,117720.0,0.0622]
[1753881858032,0.67180979,117730.0,117720.0,0.0002]
[1753881858253,0.92283979,117730.0,117720.0,0.0002]
[1753881858474,1.36911036,117730.0,117720.0,0.0002]
[1753881858689,1.40071036,117730.0,117720.0,0.0002]
[1753881858902,6.40071036,117730.0,117720.0,0.0002]
[1753881859114,6.48518766,117730.0,117720.0,0.0002]
[1753881859550,6.48518962,117730.0,117720.0,0.0002]
[1753881859760,6.51073162,117730.0,117720.0,0.0002]
[1753881863031,6.52898847,117730.0,117720.0,0.0002]
[1753881864115,6.52303575,117730.0,117720.0,0.0002]
[1753881864338,6.52898918,117730.0,117720.0,0.0002]
[1753881864559,6.56168918,117730.0,117720.0,0.0002]
[1753881865666,6.56962747,117730.0,117720.0,0.0002]
[1753881867310,6.56962723,117730.0,117720.0,0.0002]
[1753881868541,6.59183499,117730.0,117720.0,0.0002]
[1753881869016,6.56962592,117730.0,117720.0,0.0002]
[1753881869505,6.56962455,117730.0,117720.0,1e-08]
[1753881870847,6.57923852,117730.0,117720.0,1e-08]
[1753881873021,6.58023852,117730.0,117720.0,1e-08]
[1753881873398,6.57922433,117730.0,117720.0,1e-08]
[1753881873774,6.58022433,117730.0,117720.0,1e-08]
[1753881873980,6.21576981,117730.0,117720.0,1e-08]
[1753881874179,6.58022433,117730.0,117720.0,1e-08]
[1753881877415,6.54752433,117730.0,117720.0,1e-08]
[1753881878574,6.51592433,117730.0,117720.0,1e-08]
[1753881878973,6.38360433,117730.0,117720.0,1e-08]
[1753881879190,6.51588433,117730.0,117720.0,1e-08]
[1753881879825,1.51588433,117730.0,117720.0,1e-08]
[1753881880029,6.51588433,117730.0,117720.0,1e-08]
[1753881880232,6.50002354,117730.0,117720.0,1e-08]
[1753881880434,6.51587328,117730.0,117720.0,1e-08]
[1753881881333,6.5158611,117730.0,117720.0,1e-08]
[1753881882336,6.43138342,117730.0,117720.0,1e-08]
[1753881882539,6.04867205,117730.0,117720.0,0.06320001]
[1753881882738,5.84867205,117730.0,117720.0,0.06320001]
[1753881883149,5.63191475,117730.0,117720.0,0.06320001]
[1753881883352,0.73865275,117730.0,117720.0,0.06320001]
[1753881884581,1.10310727,117730.0,117720.0,0.06320001]
[1753881886492,1.18758457,117730.0,117720.0,1e-08]
[1753881886689,6.4376529,117730.0,117720.0,1e-08]
[1753881886923,6.38758457,117730.0,117720.0,1e-08]
[1753881887370,6.38758457,117730.0,117720.0,0.06460001]
[1753881887592,6.38758457,117730.0,117720.0,0.13560001]
[1753881888000,5.69085005,117730.0,117720.0,0.13560001]
[1753881888256,6.18758457,117730.0,117720.0,0.13560001]
[1753881889378,6.27206187,117730.0,117720.0,0.13560001]
[1753881890918,6.18758457,117730.0,117720.0,0.13560001]
[1753881891135,5.60637275,117730.0,117720.0,0.13560001]
[1753881891363,6.05207727,117730.0,117720.0,0.13560001]
[1753881891579,6.05207101,117730.0,117720.0,0.13560001]
[1753881894298,6.05207706,117730.0,117720.0,0.13560001]
[1753881895110,6.05207706,117730.0,117720.0,0.13245001]
[1753881895530,6.05207706,117730.0,117720.0,0.09915001]
[1753881895531,6.25207706,117730.0,117720.0,0.09915001]
[1753881895924,6.25207706,117730.0,117720.0,0.13105001]
[1753881896166,6.25207706,117730.0,117720.0,0.13420001]
[1753881896577,6.30316706,117730.0,117720.0,0.13420001]
[1753881897179,6.30318325,117730.0,117720.0,0.13420001]
[1753881899651,6.30524325,117730.0,117720.0,0.13621001]
[1753881899936,5.94078873,117730.0,117720.0,0.13621001]
[1753881900146,6.30524325,117730.0,117720.0,0.13621001]
[1753881900374,1.30318325,117730.0,117720.0,0.13105001]
[1753881900597,1.30314325,117730.0,117720.0,0.13105001]
[1753881901382,0.93868873,117730.0,117720.0,0.13621001]
[1753881901848,1.30314325,117730.0,117720.0,0.13621001]
[1753881903212,1.17090325,117730.0,117720.0,0.13621001]
[1753881903943,0.55535873,117730.0,117720.0,0.13621001]
[1753881904179,0.21535873,117730.0,117720.0,0.50066453]
[1753881904416,0.04872778,117730.0,117720.0,0.76353122]
[1753881904640,0.04872764,117730.0,117720.0,0.77202588]
[1753881904858,0.03174085,117730.0,117720.0,0.79750905]
[1753881905117,0.03074085,117730.0,117720.0,0.81495807]
[1753881905345,0.02974085,117730.0,117720.0,1.17941259]
[1753881905575,0.02181118,117730.0,117720.0,1.18241259]
[1753881905805,0.01698556,117740.0,117730.0,0.24277416]
[1753881906031,0.01698556,117740.0,117730.0,0.81741205]
[1753881906032,0.05522304,117740.0,117730.0,0.81741205]
[1753881906315,0.06371604,117740.0,117730.0,0.89157606]
[1753881906548,0.05522304,117740.0,117730.0,0.90856378]
[1753881906776,0.06371618,117740.0,117730.0,0.88308205]
[1753881906993,0.06371611,117740.0,117730.0,0.90006999]
[1753881907216,0.06371611,117740.0,117730.0,0.89157606]
[1753881907681,0.07220932,117740.0,117730.0,0.89257606]
[1753881907896,0.06371611,117740.0,117730.0,0.90106999]
[1753881908122,0.06371611,117740.0,117730.0,0.89257606]
[1753881908343,0.07220932,117740.0,117730.0,0.88408205]
[1753881908554,0.07220932,117740.0,117730.0,0.89257606]
[1753881908797,0.07220932,117740.0,117730.0,0.71520182]
[1753881909006,0.23358241,117740.0,117730.0,0.71520182]
[1753881909452,0.21659664,117740.0,117730.0,0.71516182]
[1753881909677,0.21659664,117740.0,117730.0,0.3507073]
[1753881909889,0.04673084,117740.0,117730.0,0.52058753]
[1753881910349,0.04673084,117740.0,117730.0,0.88504205]
[1753881910560,0.04673084,117740.0,117730.0,0.71516182]
[1753881910980,0.05522377,117740.0,117730.0,0.88504205]
[1753881911435,0.05522377,117740.0,117730.0,0.71516182]
[1753881911682,0.22508194,117740.0,117730.0,0.71516182]
[1753881913319,0.17835909,117740.0,117730.0,0.3507073]
[1753881913550,1.09070461,117740.0,117730.0,0.0664]
[1753881913773,1.1745877,117740.0,117730.0,0.1986]
[1753881914001,1.1714277,117740.0,117730.0,0.1986]
[1753881914219,1.1085277,117740.0,117730.0,0.1986]
[1753881914439,1.1085277,117740.0,117730.0,0.26129]
[1753881914440,1.0907043,117740.0,117730.0,0.26129]
[1753881914663,1.08476361,117740.0,117730.0,0.1986]
[1753881914881,1.10852479,117740.0,117730.0,0.1986]
[1753881915094,1.11446421,117740.0,117730.0,0.26129]
[1753881915322,1.11446364,117740.0,117730.0,0.26129]
[1753881916099,0.75000768,117740.0,117730.0,0.26325]
[1753881916299,0.75000768,117740.0,117730.0,0.26623]
[1753881917302,0.75000768,117740.0,117730.0,0.26325]
[1753881918546,0.74805768,117740.0,117730.0,0.26623]
[1753881921942,0.75000768,117740.0,117730.0,0.26325]
[1753881922152,0.74406801,117740.0,117730.0,0.26321]